[Event "Titled Tuesday Blitz March 29 Late 2022"]
[White "Steinberg, Nitzan"]
[Black "Hnydiuk, Aleksander"]
[WhiteFideId "2801795"]
[BlackFideId "1109057"]
[WhiteElo "2440"]
[BlackElo "2374"]
[Result "1-0"]
[Round "01"]
[TimeControl "180+1"]
[Date "2022.03.29"]
[WhiteClock "0:01:33"]
[BlackClock "0:00:19"]

1. d4 {[%clk 0:03:00]}  Nf6 {[%clk 0:02:58]} 2. Nf3 {[%clk 0:03:00]}  e6 {[%clk 0:02:58]} 3. c4 {[%clk 0:03:00]}  d5 {[%clk 0:02:55]} 4. Nc3 {[%clk 0:03:00]}  c5 {[%clk 0:02:53]} 5. cxd5 {[%clk 0:02:58]}  Nxd5 {[%clk 0:02:54]} 6. e4 {[%clk 0:02:58]}  Nxc3 {[%clk 0:02:55]} 7. bxc3 {[%clk 0:02:59]}  cxd4 {[%clk 0:02:55]} 8. cxd4 {[%clk 0:02:59]}  Bb4+ {[%clk 0:02:56]} 9. Bd2 {[%clk 0:03:00]}  Bxd2+ {[%clk 0:02:56]} 10. Qxd2 {[%clk 0:03:01]}  O-O {[%clk 0:02:57]} 11. Bc4 {[%clk 0:03:00]}  Nd7 {[%clk 0:02:57]} 12. O-O {[%clk 0:02:56]}  b6 {[%clk 0:02:57]} 13. Rfe1 {[%clk 0:02:55]}  Bb7 {[%clk 0:02:57]} 14. Rad1 {[%clk 0:02:55]}  Rc8 {[%clk 0:02:58]} 15. Bb3 {[%clk 0:02:55]}  h6 {[%clk 0:02:58]} 16. Qe3 {[%clk 0:02:44]}  Qf6 {[%clk 0:02:57]} 17. h3 {[%clk 0:02:39]}  Rfd8 {[%clk 0:02:56]} 18. Rd2 {[%clk 0:02:36]}  Nf8 {[%clk 0:02:47]} 19. Ne5 {[%clk 0:02:24]}  Ng6 {[%clk 0:02:46]} 20. Nxg6 {[%clk 0:02:21]}  Qxg6 {[%clk 0:02:47]} 21. f4 {[%clk 0:02:21]}  Qf6 {[%clk 0:02:28]} 22. Rf1 {[%clk 0:02:16]}  Qe7 {[%clk 0:02:19]} 23. f5 {[%clk 0:02:00]}  exf5 {[%clk 0:02:18]} 24. Rxf5 {[%clk 0:02:00]}  Qxe4 {[%clk 0:02:10]} 25. Qxe4 {[%clk 0:02:00]}  Bxe4 {[%clk 0:02:11]} 26. Rxf7 {[%clk 0:02:01]}  Bd5 {[%clk 0:02:02]} 27. Bxd5 {[%clk 0:01:54]}  Rxd5 {[%clk 0:02:03]} 28. Rxa7 {[%clk 0:01:54]}  Rc4 {[%clk 0:01:53]} 29. Rb7 {[%clk 0:01:52]}  Rcxd4 {[%clk 0:01:30]} 30. Rxd4 {[%clk 0:01:52]}  Rxd4 {[%clk 0:01:31]} 31. Rxb6 {[%clk 0:01:52]}  Ra4 {[%clk 0:01:28]} 32. Rb2 {[%clk 0:01:53]}  Ra3 {[%clk 0:01:28]} 33. Kf2 {[%clk 0:01:53]}  Kf7 {[%clk 0:01:25]} 34. Ke2 {[%clk 0:01:53]}  Kf6 {[%clk 0:01:25]} 35. Kd2 {[%clk 0:01:53]}  Ke5 {[%clk 0:01:17]} 36. Kc2 {[%clk 0:01:53]}  Kf4 {[%clk 0:01:16]} 37. Kb1 {[%clk 0:01:50]}  h5 {[%clk 0:01:02]} 38. Rb4+ {[%clk 0:01:45]}  Kg5 {[%clk 0:00:41]} 39. Rb3 {[%clk 0:01:40]}  Ra4 {[%clk 0:00:38]} 40. a3 {[%clk 0:01:36]}  h4 {[%clk 0:00:25]} 41. Ka2 {[%clk 0:01:35]}  Kh5 {[%clk 0:00:24]} 42. Rb4 {[%clk 0:01:34]}  Ra5 {[%clk 0:00:21]} 43. a4 {[%clk 0:01:35]}  Rg5 {[%clk 0:00:19]} 44. Rb5 {[%clk 0:01:33]} 1-0


[Site "https://www.chess.com"]

[Event "Titled Tuesday Blitz March 29 Late 2022"]
[White "Svane, Rasmus"]
[Black "Srinath, Rao S.V."]
[WhiteFideId "4657101"]
[BlackFideId "5028876"]
[WhiteElo "2645"]
[BlackElo "2181"]
[Result "0-1"]
[Round "01"]
[TimeControl "180+1"]
[Date "2022.03.29"]
[WhiteClock "0:00:07"]
[BlackClock "0:00:30"]

1. Nf3 {[%clk 0:03:00]}  Nf6 {[%clk 0:02:59]} 2. g3 {[%clk 0:03:00]}  g6 {[%clk 0:03:00]} 3. Bg2 {[%clk 0:02:58]}  Bg7 {[%clk 0:03:00]} 4. O-O {[%clk 0:02:58]}  O-O {[%clk 0:02:59]} 5. d4 {[%clk 0:02:59]}  d6 {[%clk 0:02:59]} 6. Re1 {[%clk 0:02:59]}  Nc6 {[%clk 0:03:00]} 7. d5 {[%clk 0:02:59]}  Ne5 {[%clk 0:02:56]} 8. Nxe5 {[%clk 0:02:59]}  dxe5 {[%clk 0:02:57]} 9. c4 {[%clk 0:02:56]}  b6 {[%clk 0:02:49]} 10. Nc3 {[%clk 0:02:48]}  Bb7 {[%clk 0:02:47]} 11. h3 {[%clk 0:02:32]}  a6 {[%clk 0:02:44]} 12. Be3 {[%clk 0:02:28]}  Nd7 {[%clk 0:02:36]} 13. Rc1 {[%clk 0:02:27]}  f5 {[%clk 0:02:30]} 14. Bg5 {[%clk 0:02:16]}  Bf6 {[%clk 0:02:18]} 15. Bh6 {[%clk 0:02:13]}  Bg7 {[%clk 0:02:18]} 16. Bxg7 {[%clk 0:02:12]}  Kxg7 {[%clk 0:02:19]} 17. b4 {[%clk 0:02:05]}  a5 {[%clk 0:02:17]} 18. a3 {[%clk 0:02:05]}  axb4 {[%clk 0:02:15]} 19. axb4 {[%clk 0:02:06]}  f4 {[%clk 0:02:00]} 20. Ne4 {[%clk 0:02:04]}  Nf6 {[%clk 0:01:58]} 21. Ng5 {[%clk 0:02:04]}  Bc8 {[%clk 0:01:57]} 22. gxf4 {[%clk 0:01:56]}  exf4 {[%clk 0:01:54]} 23. e3 {[%clk 0:01:37]}  h6 {[%clk 0:01:50]} 24. Nf3 {[%clk 0:01:36]}  fxe3 {[%clk 0:01:42]} 25. Rxe3 {[%clk 0:01:37]}  Bf5 {[%clk 0:01:42]} 26. Nd4 {[%clk 0:01:36]}  Qd6 {[%clk 0:01:39]} 27. c5 {[%clk 0:01:34]}  bxc5 {[%clk 0:01:36]} 28. bxc5 {[%clk 0:01:35]}  Qd7 {[%clk 0:01:28]} 29. d6 {[%clk 0:01:06]}  cxd6 {[%clk 0:01:24]} 30. Bxa8 {[%clk 0:01:01]}  Rxa8 {[%clk 0:01:18]} 31. Nxf5+ {[%clk 0:01:01]}  gxf5 {[%clk 0:01:13]} 32. cxd6 {[%clk 0:01:01]}  exd6 {[%clk 0:01:11]} 33. Qd4 {[%clk 0:00:59]}  Rg8 {[%clk 0:01:07]} 34. Rg3+ {[%clk 0:00:57]}  Kf7 {[%clk 0:01:07]} 35. Rxg8 {[%clk 0:00:57]}  Nxg8 {[%clk 0:01:07]} 36. Qc4+ {[%clk 0:00:42]}  Qe6 {[%clk 0:01:07]} 37. Qf4 {[%clk 0:00:34]}  Ne7 {[%clk 0:01:03]} 38. Kh2 {[%clk 0:00:32]}  Qe5 {[%clk 0:01:00]} 39. Kg3 {[%clk 0:00:25]}  Ng6 {[%clk 0:00:53]} 40. Qxe5 {[%clk 0:00:25]}  dxe5 {[%clk 0:00:54]} 41. Rc6 {[%clk 0:00:25]}  Kg7 {[%clk 0:00:52]} 42. Kf3 {[%clk 0:00:24]}  h5 {[%clk 0:00:49]} 43. Rc1 {[%clk 0:00:18]}  h4 {[%clk 0:00:48]} 44. Rc3 {[%clk 0:00:14]}  Kf6 {[%clk 0:00:48]} 45. Ke2 {[%clk 0:00:13]}  Nf4+ {[%clk 0:00:47]} 46. Kd2 {[%clk 0:00:11]}  Kg5 {[%clk 0:00:47]} 47. Ra3 {[%clk 0:00:11]}  e4 {[%clk 0:00:45]} 48. Ke1 {[%clk 0:00:11]}  Nd3+ {[%clk 0:00:44]} 49. Kf1 {[%clk 0:00:11]}  Kf4 {[%clk 0:00:43]} 50. Ra8 {[%clk 0:00:09]}  Kf3 {[%clk 0:00:39]} 51. Ra2 {[%clk 0:00:07]}  Nf4 {[%clk 0:00:30]} 52. Ra3+ {[%clk 0:00:07]}  Nd3 {[%clk 0:00:31]} 53. Rb3 {[%clk 0:00:06]}  Kf4 {[%clk 0:00:29]} 54. Kg2 {[%clk 0:00:07]}  Ne1+ {[%clk 0:00:28]} 55. Kg1 {[%clk 0:00:07]}  Nf3+ {[%clk 0:00:29]} 56. Kf1 {[%clk 0:00:07]}  Nd2+ {[%clk 0:00:29]} 57. Kg2 {[%clk 0:00:07]}  Nxb3 {[%clk 0:00:30]} 0-1


[Site "https://www.chess.com"]

[Event "Titled Tuesday Blitz March 29 Late 2022"]
[White "Terrieux, Kevin"]
[Black "Sarkar, Justin"]
[WhiteFideId "622591"]
[BlackFideId "2010011"]
[WhiteElo "2482"]
[BlackElo "2038"]
[Result "1-0"]
[Round "01"]
[TimeControl "180+1"]
[Date "2022.03.30"]
[WhiteClock "0:00:22"]
[BlackClock "0:00:01"]

1. d4 {[%clk 0:02:59]}  Nf6 {[%clk 0:02:55]} 2. f3 {[%clk 0:02:57]}  d5 {[%clk 0:02:49]} 3. e4 {[%clk 0:02:56]}  dxe4 {[%clk 0:02:40]} 4. Nc3 {[%clk 0:02:55]}  e5 {[%clk 0:02:29]} 5. dxe5 {[%clk 0:02:54]}  Qxd1+ {[%clk 0:02:28]} 6. Kxd1 {[%clk 0:02:55]}  Nfd7 {[%clk 0:02:23]} 7. Nd5 {[%clk 0:02:56]}  Kd8 {[%clk 0:02:06]} 8. Bg5+ {[%clk 0:02:54]}  f6 {[%clk 0:02:05]} 9. exf6 {[%clk 0:02:54]}  gxf6 {[%clk 0:02:03]} 10. Nxf6 {[%clk 0:02:54]}  h6 {[%clk 0:01:42]} 11. Nxd7+ {[%clk 0:02:37]}  hxg5 {[%clk 0:01:38]} 12. Nxf8 {[%clk 0:02:25]}  Rxf8 {[%clk 0:01:37]} 13. Be2 {[%clk 0:02:25]}  Bf5 {[%clk 0:01:26]} 14. fxe4 {[%clk 0:02:15]}  Bxe4 {[%clk 0:01:25]} 15. Bf3 {[%clk 0:02:12]}  Nc6 {[%clk 0:00:52]} 16. Kd2 {[%clk 0:01:26]}  Bxf3 {[%clk 0:00:48]} 17. Nxf3 {[%clk 0:01:17]}  g4 {[%clk 0:00:46]} 18. Nh4 {[%clk 0:01:17]}  Rf2+ {[%clk 0:00:40]} 19. Kc3 {[%clk 0:01:16]}  b5 {[%clk 0:00:20]} 20. Rad1+ {[%clk 0:01:07]}  Kc8 {[%clk 0:00:19]} 21. Rhf1 {[%clk 0:00:58]}  b4+ {[%clk 0:00:19]} 22. Kb3 {[%clk 0:00:54]}  Nd4+ {[%clk 0:00:17]} 23. Kc4 {[%clk 0:00:51]}  Rxf1 {[%clk 0:00:07]} 24. Rxf1 {[%clk 0:00:49]}  Nxc2 {[%clk 0:00:07]} 25. Kd3 {[%clk 0:00:30]}  b3 {[%clk 0:00:02]} 26. axb3 {[%clk 0:00:25]}  Nb4+ {[%clk 0:00:02]} 27. Kc4 {[%clk 0:00:25]}  Nc6 {[%clk 0:00:01]} 28. Rf8+ {[%clk 0:00:24]}  Nd8 {[%clk 0:00:01]} 29. Rg8 {[%clk 0:00:22]} 1-0


[Site "https://www.chess.com"]

[Event "Titled Tuesday Blitz March 29 Late 2022"]
[White "Tiarks, Jann-Christian"]
[Black "Szpar, Milosz"]
[WhiteFideId "12951595"]
[BlackFideId "1184989"]
[WhiteElo "2176"]
[BlackElo "2447"]
[Result "1/2-1/2"]
[Round "01"]
[TimeControl "180+1"]
[Date "2022.03.30"]
[WhiteClock "0:00:05"]
[BlackClock "0:00:06"]

1. e4 {[%clk 0:03:00]}  c5 {[%clk 0:02:56]} 2. c3 {[%clk 0:02:51]}  d5 {[%clk 0:02:50]} 3. exd5 {[%clk 0:02:51]}  Qxd5 {[%clk 0:02:50]} 4. d4 {[%clk 0:02:51]}  Nf6 {[%clk 0:02:40]} 5. Nf3 {[%clk 0:02:50]}  Bg4 {[%clk 0:02:37]} 6. Be2 {[%clk 0:02:49]}  e6 {[%clk 0:02:30]} 7. Na3 {[%clk 0:02:45]}  Nc6 {[%clk 0:02:26]} 8. O-O {[%clk 0:02:35]}  Be7 {[%clk 0:02:22]} 9. Be3 {[%clk 0:02:33]}  cxd4 {[%clk 0:02:20]} 10. Nb5 {[%clk 0:02:32]}  O-O {[%clk 0:02:17]} 11. Nbxd4 {[%clk 0:02:31]}  Rfd8 {[%clk 0:02:13]} 12. Nxc6 {[%clk 0:02:20]}  Qxc6 {[%clk 0:02:12]} 13. Nd4 {[%clk 0:02:19]}  Bxe2 {[%clk 0:02:09]} 14. Nxc6 {[%clk 0:02:17]}  Rxd1 {[%clk 0:02:08]} 15. Nxe7+ {[%clk 0:02:16]}  Kf8 {[%clk 0:02:08]} 16. Ng6+ {[%clk 0:02:11]}  hxg6 {[%clk 0:02:03]} 17. Rfxd1 {[%clk 0:02:12]}  Bxd1 {[%clk 0:02:03]} 18. Rxd1 {[%clk 0:02:12]}  Ke8 {[%clk 0:02:01]} 19. f3 {[%clk 0:02:09]}  Nd5 {[%clk 0:02:01]} 20. Bd4 {[%clk 0:02:06]}  f6 {[%clk 0:02:01]} 21. c4 {[%clk 0:02:06]}  Nb4 {[%clk 0:02:00]} 22. a3 {[%clk 0:02:05]}  Nc6 {[%clk 0:01:49]} 23. Bc3 {[%clk 0:02:04]}  a5 {[%clk 0:01:38]} 24. Kf2 {[%clk 0:02:00]}  a4 {[%clk 0:01:38]} 25. g4 {[%clk 0:01:53]}  Rc8 {[%clk 0:01:37]} 26. h4 {[%clk 0:01:50]}  Nb8 {[%clk 0:01:34]} 27. Rd6 {[%clk 0:01:47]}  Kf7 {[%clk 0:01:21]} 28. Rb6 {[%clk 0:01:46]}  Rc7 {[%clk 0:01:08]} 29. Rb4 {[%clk 0:01:45]}  Nd7 {[%clk 0:01:03]} 30. Rxa4 {[%clk 0:01:43]}  Nb6 {[%clk 0:01:02]} 31. Ra7 {[%clk 0:01:17]}  Nxc4 {[%clk 0:01:02]} 32. a4 {[%clk 0:01:06]}  Ke7 {[%clk 0:00:59]} 33. a5 {[%clk 0:01:04]}  Kd7 {[%clk 0:00:59]} 34. Ra8 {[%clk 0:01:03]}  e5 {[%clk 0:00:57]} 35. Rg8 {[%clk 0:00:55]}  Ke6 {[%clk 0:00:55]} 36. h5 {[%clk 0:00:55]}  gxh5 {[%clk 0:00:54]} 37. gxh5 {[%clk 0:00:56]}  Kf5 {[%clk 0:00:54]} 38. Rh8 {[%clk 0:00:53]}  Nxb2 {[%clk 0:00:49]} 39. Bxb2 {[%clk 0:00:47]}  Rc2+ {[%clk 0:00:49]} 40. Kg3 {[%clk 0:00:47]}  Rxb2 {[%clk 0:00:50]} 41. Rh7 {[%clk 0:00:44]}  Kg5 {[%clk 0:00:35]} 42. Rxg7+ {[%clk 0:00:42]}  Kxh5 {[%clk 0:00:35]} 43. Kh3 {[%clk 0:00:33]}  Rb3 {[%clk 0:00:34]} 44. Kg3 {[%clk 0:00:33]}  e4 {[%clk 0:00:34]} 45. Kf4 {[%clk 0:00:32]}  exf3 {[%clk 0:00:34]} 46. Kf5 {[%clk 0:00:31]}  Kh6 {[%clk 0:00:28]} 47. Rg6+ {[%clk 0:00:30]}  Kh7 {[%clk 0:00:27]} 48. Rxf6 {[%clk 0:00:30]}  Kg7 {[%clk 0:00:23]} 49. Rg6+ {[%clk 0:00:27]}  Kf7 {[%clk 0:00:22]} 50. Rf6+ {[%clk 0:00:28]}  Ke7 {[%clk 0:00:22]} 51. Re6+ {[%clk 0:00:27]}  Kd7 {[%clk 0:00:22]} 52. Rf6 {[%clk 0:00:28]}  Kc7 {[%clk 0:00:13]} 53. Ke4 {[%clk 0:00:27]}  Kb8 {[%clk 0:00:12]} 54. Kd4 {[%clk 0:00:21]}  Ka7 {[%clk 0:00:12]} 55. Kc4 {[%clk 0:00:21]}  Ra3 {[%clk 0:00:11]} 56. Kb4 {[%clk 0:00:22]}  Re3 {[%clk 0:00:12]} 57. Kb5 {[%clk 0:00:20]}  Kb8 {[%clk 0:00:11]} 58. Kb6 {[%clk 0:00:20]}  Rb3+ {[%clk 0:00:12]} 59. Kc5 {[%clk 0:00:20]}  Kc7 {[%clk 0:00:12]} 60. Rf7+ {[%clk 0:00:20]}  Kd8 {[%clk 0:00:12]} 61. Rf6 {[%clk 0:00:19]}  Ke7 {[%clk 0:00:12]} 62. Rf5 {[%clk 0:00:18]}  Ke6 {[%clk 0:00:13]} 63. Rf8 {[%clk 0:00:18]}  Ke5 {[%clk 0:00:13]} 64. Kc4 {[%clk 0:00:17]}  Ra3 {[%clk 0:00:13]} 65. Kb4 {[%clk 0:00:17]}  Re3 {[%clk 0:00:13]} 66. Rf7 {[%clk 0:00:16]}  Re2 {[%clk 0:00:10]} 67. Kc3 {[%clk 0:00:11]}  Ke4 {[%clk 0:00:08]} 68. Rxb7 {[%clk 0:00:11]}  f2 {[%clk 0:00:08]} 69. Rf7 {[%clk 0:00:11]}  Ra2 {[%clk 0:00:07]} 70. Kb4 {[%clk 0:00:10]}  Ke3 {[%clk 0:00:05]} 71. Kb5 {[%clk 0:00:09]}  Rb2+ {[%clk 0:00:05]} 72. Kc6 {[%clk 0:00:08]}  Rc2+ {[%clk 0:00:05]} 73. Kb6 {[%clk 0:00:08]}  Rb2+ {[%clk 0:00:04]} 74. Kc6 {[%clk 0:00:08]}  Ra2 {[%clk 0:00:04]} 75. Kb6 {[%clk 0:00:08]}  Ke2 {[%clk 0:00:04]} 76. a6 {[%clk 0:00:08]}  Ra3 {[%clk 0:00:03]} 77. a7 {[%clk 0:00:06]}  Rb3+ {[%clk 0:00:03]} 78. Kc7 {[%clk 0:00:06]}  Ra3 {[%clk 0:00:04]} 79. Kb7 {[%clk 0:00:05]}  Rxa7+ {[%clk 0:00:04]} 80. Kxa7 {[%clk 0:00:05]}  f1=Q {[%clk 0:00:05]} 81. Rxf1 {[%clk 0:00:05]}  Kxf1 {[%clk 0:00:06]} 1/2-1/2


[Site "https://www.chess.com"]

[Event "Titled Tuesday Blitz March 29 Late 2022"]
[White "Toncheva, Nadya"]
[Black "Pulpan, Jakub"]
[WhiteFideId "2924056"]
[BlackFideId "302759"]
[WhiteElo "1884"]
[BlackElo "2495"]
[Result "1-0"]
[Round "01"]
[TimeControl "180+1"]
[Date "2022.03.30"]
[WhiteClock "0:00:12"]
[BlackClock "0:00:01"]

1. e4 {[%clk 0:02:58]}  e5 {[%clk 0:02:50]} 2. Nf3 {[%clk 0:02:58]}  Nc6 {[%clk 0:02:46]} 3. Bc4 {[%clk 0:02:58]}  Nf6 {[%clk 0:02:44]} 4. d3 {[%clk 0:02:58]}  Be7 {[%clk 0:02:42]} 5. O-O {[%clk 0:02:57]}  O-O {[%clk 0:02:41]} 6. c3 {[%clk 0:02:57]}  d6 {[%clk 0:02:38]} 7. Re1 {[%clk 0:02:56]}  Kh8 {[%clk 0:02:38]} 8. Nbd2 {[%clk 0:02:54]}  Ng8 {[%clk 0:02:33]} 9. Nf1 {[%clk 0:02:52]}  f5 {[%clk 0:02:32]} 10. exf5 {[%clk 0:02:51]}  Bxf5 {[%clk 0:02:33]} 11. h3 {[%clk 0:02:51]}  d5 {[%clk 0:02:32]} 12. Bb5 {[%clk 0:02:43]}  e4 {[%clk 0:02:32]} 13. dxe4 {[%clk 0:02:38]}  Bxe4 {[%clk 0:02:32]} 14. Nd4 {[%clk 0:02:24]}  Nxd4 {[%clk 0:02:28]} 15. Qxd4 {[%clk 0:02:25]}  c6 {[%clk 0:02:00]} 16. Bd3 {[%clk 0:02:20]}  Nf6 {[%clk 0:01:58]} 17. Ng3 {[%clk 0:02:16]}  c5 {[%clk 0:01:47]} 18. Qe3 {[%clk 0:02:14]}  Bxd3 {[%clk 0:01:35]} 19. Qxd3 {[%clk 0:02:12]}  Bd6 {[%clk 0:01:34]} 20. Nf5 {[%clk 0:02:09]}  Ne4 {[%clk 0:01:30]} 21. Nxd6 {[%clk 0:02:03]}  Nxd6 {[%clk 0:01:27]} 22. Qxd5 {[%clk 0:02:00]}  Qb6 {[%clk 0:01:25]} 23. Be3 {[%clk 0:01:57]}  Rf5 {[%clk 0:01:21]} 24. Qd3 {[%clk 0:01:42]}  Raf8 {[%clk 0:01:09]} 25. Rad1 {[%clk 0:01:40]}  Ne8 {[%clk 0:01:01]} 26. b4 {[%clk 0:01:26]}  Qf6 {[%clk 0:00:43]} 27. Bxc5 {[%clk 0:01:23]}  Rxc5 {[%clk 0:00:38]} 28. bxc5 {[%clk 0:01:19]}  Qxf2+ {[%clk 0:00:38]} 29. Kh1 {[%clk 0:01:20]}  Nf6 {[%clk 0:00:39]} 30. Qf3 {[%clk 0:01:12]}  Qxc5 {[%clk 0:00:34]} 31. Qxb7 {[%clk 0:01:12]}  h6 {[%clk 0:00:13]} 32. Qe7 {[%clk 0:01:11]}  Qc8 {[%clk 0:00:13]} 33. Qxa7 {[%clk 0:01:06]}  Qxc3 {[%clk 0:00:13]} 34. Qd4 {[%clk 0:00:55]}  Qa3 {[%clk 0:00:11]} 35. Qd6 {[%clk 0:00:46]}  Qa8 {[%clk 0:00:08]} 36. a4 {[%clk 0:00:40]}  Rg8 {[%clk 0:00:04]} 37. Ra1 {[%clk 0:00:29]}  Ne4 {[%clk 0:00:04]} 38. Qf4 {[%clk 0:00:25]}  Ng5 {[%clk 0:00:03]} 39. a5 {[%clk 0:00:20]}  Rf8 {[%clk 0:00:04]} 40. Qg3 {[%clk 0:00:18]}  Ne4 {[%clk 0:00:04]} 41. Qe3 {[%clk 0:00:15]}  Nf6 {[%clk 0:00:03]} 42. a6 {[%clk 0:00:14]}  Rf7 {[%clk 0:00:02]} 43. a7 {[%clk 0:00:14]}  Kh7 {[%clk 0:00:02]} 44. Qd3+ {[%clk 0:00:13]}  g6 {[%clk 0:00:02]} 45. Qf3 {[%clk 0:00:13]}  Nd5 {[%clk 0:00:01]} 46. Qxf7+ {[%clk 0:00:12]} 1-0


[Site "https://www.chess.com"]

[Event "Titled Tuesday Blitz March 29 Late 2022"]
[White "Vargas, Gabriela"]
[Black "Kosteniuk, Alexandra"]
[WhiteFideId "3700860"]
[BlackFideId "4128125"]
[WhiteElo "2071"]
[BlackElo "2469"]
[Result "0-1"]
[Round "01"]
[TimeControl "180+1"]
[Date "2022.03.30"]
[WhiteClock "0:00:22"]
[BlackClock "0:01:06"]

1. d4 {[%clk 0:03:00]}  Nf6 {[%clk 0:02:59]} 2. Nf3 {[%clk 0:03:01]}  e6 {[%clk 0:02:57]} 3. Bg5 {[%clk 0:03:00]}  d5 {[%clk 0:02:53]} 4. Nbd2 {[%clk 0:02:59]}  c5 {[%clk 0:02:52]} 5. e3 {[%clk 0:02:58]}  Nc6 {[%clk 0:02:52]} 6. c3 {[%clk 0:02:58]}  Be7 {[%clk 0:02:52]} 7. Bd3 {[%clk 0:02:55]}  b6 {[%clk 0:02:46]} 8. O-O {[%clk 0:02:54]}  Bb7 {[%clk 0:02:46]} 9. Ne5 {[%clk 0:02:51]}  Nxe5 {[%clk 0:02:44]} 10. dxe5 {[%clk 0:02:52]}  Nd7 {[%clk 0:02:44]} 11. Bxe7 {[%clk 0:02:53]}  Qxe7 {[%clk 0:02:45]} 12. f4 {[%clk 0:02:53]}  f6 {[%clk 0:02:41]} 13. Qh5+ {[%clk 0:02:45]}  Qf7 {[%clk 0:02:36]} 14. Qxf7+ {[%clk 0:02:42]}  Kxf7 {[%clk 0:02:37]} 15. exf6 {[%clk 0:02:42]}  gxf6 {[%clk 0:02:34]} 16. e4 {[%clk 0:02:40]}  Rad8 {[%clk 0:02:26]} 17. Rad1 {[%clk 0:02:36]}  h5 {[%clk 0:02:25]} 18. exd5 {[%clk 0:02:30]}  exd5 {[%clk 0:02:22]} 19. Bf5 {[%clk 0:02:28]}  Nf8 {[%clk 0:02:18]} 20. Nf3 {[%clk 0:02:26]}  Ne6 {[%clk 0:02:13]} 21. Nh4 {[%clk 0:02:06]}  Rhg8 {[%clk 0:02:05]} 22. Rde1 {[%clk 0:02:04]}  Nc7 {[%clk 0:01:54]} 23. Bh7 {[%clk 0:01:51]}  Rg7 {[%clk 0:01:50]} 24. Bc2 {[%clk 0:01:32]}  d4 {[%clk 0:01:49]} 25. cxd4 {[%clk 0:01:28]}  cxd4 {[%clk 0:01:48]} 26. Bb3+ {[%clk 0:01:27]}  Kf8 {[%clk 0:01:48]} 27. g3 {[%clk 0:01:25]}  d3 {[%clk 0:01:30]} 28. Nf5 {[%clk 0:01:22]}  Rgd7 {[%clk 0:01:30]} 29. Rd1 {[%clk 0:01:11]}  Be4 {[%clk 0:01:25]} 30. Ne3 {[%clk 0:01:07]}  f5 {[%clk 0:01:23]} 31. Rd2 {[%clk 0:01:04]}  b5 {[%clk 0:01:22]} 32. Nd1 {[%clk 0:00:50]}  h4 {[%clk 0:01:16]} 33. Kf2 {[%clk 0:00:28]}  hxg3+ {[%clk 0:01:15]} 34. hxg3 {[%clk 0:00:29]}  Rh7 {[%clk 0:01:13]} 35. Nc3 {[%clk 0:00:26]}  Bc6 {[%clk 0:01:06]} 36. Re1 {[%clk 0:00:22]}  b4 {[%clk 0:01:06]} 0-1


[Site "https://www.chess.com"]

[Event "Titled Tuesday Blitz March 29 Late 2022"]
[White "Vovk, Orest"]
[Black "Pakleza, Zbigniew"]
[WhiteFideId "14113490"]
[BlackFideId "1119290"]
[WhiteElo "2448"]
[BlackElo "2780"]
[Result "1-0"]
[Round "01"]
[TimeControl "180+1"]
[Date "2022.03.30"]
[WhiteClock "0:00:14"]
[BlackClock "0:00:07"]

1. h4 {[%clk 0:03:00]}  d5 {[%clk 0:02:58]} 2. h5 {[%clk 0:03:00]}  h6 {[%clk 0:02:59]} 3. e4 {[%clk 0:02:58]}  dxe4 {[%clk 0:02:57]} 4. Nc3 {[%clk 0:02:55]}  Nf6 {[%clk 0:02:57]} 5. Qe2 {[%clk 0:02:53]}  Qd4 {[%clk 0:02:30]} 6. Rh4 {[%clk 0:02:51]}  Nc6 {[%clk 0:02:24]} 7. Nxe4 {[%clk 0:02:49]}  Nxe4 {[%clk 0:02:18]} 8. Qxe4 {[%clk 0:02:40]}  Qxe4+ {[%clk 0:02:09]} 9. Rxe4 {[%clk 0:02:41]}  Bf5 {[%clk 0:02:07]} 10. Rc4 {[%clk 0:02:39]}  O-O-O {[%clk 0:02:00]} 11. d3 {[%clk 0:02:32]}  e5 {[%clk 0:01:57]} 12. Be3 {[%clk 0:02:27]}  Be6 {[%clk 0:01:49]} 13. Ra4 {[%clk 0:02:22]}  a6 {[%clk 0:01:36]} 14. O-O-O {[%clk 0:02:20]}  Nb4 {[%clk 0:01:25]} 15. a3 {[%clk 0:02:10]}  Nd5 {[%clk 0:01:24]} 16. g3 {[%clk 0:01:45]}  Nxe3 {[%clk 0:01:13]} 17. fxe3 {[%clk 0:01:45]}  Bc5 {[%clk 0:01:13]} 18. Re1 {[%clk 0:01:40]}  Rhe8 {[%clk 0:00:49]} 19. Re4 {[%clk 0:01:31]}  Bd5 {[%clk 0:00:38]} 20. Rg4 {[%clk 0:01:25]}  Bf8 {[%clk 0:00:38]} 21. e4 {[%clk 0:01:20]}  Bc6 {[%clk 0:00:33]} 22. Nf3 {[%clk 0:01:06]}  Bd7 {[%clk 0:00:18]} 23. Rh4 {[%clk 0:01:04]}  Kb8 {[%clk 0:00:19]} 24. Bh3 {[%clk 0:01:03]}  Bb5 {[%clk 0:00:15]} 25. Bf5 {[%clk 0:00:59]}  c5 {[%clk 0:00:15]} 26. b3 {[%clk 0:00:56]}  Bc6 {[%clk 0:00:15]} 27. Rg4 {[%clk 0:00:52]}  c4 {[%clk 0:00:13]} 28. bxc4 {[%clk 0:00:46]}  Bxa3+ {[%clk 0:00:14]} 29. Kd2 {[%clk 0:00:46]}  Bf8 {[%clk 0:00:15]} 30. Rb1 {[%clk 0:00:42]}  Kc7 {[%clk 0:00:15]} 31. Ne1 {[%clk 0:00:39]}  a5 {[%clk 0:00:12]} 32. Ng2 {[%clk 0:00:37]}  b6 {[%clk 0:00:10]} 33. Ne3 {[%clk 0:00:36]}  a4 {[%clk 0:00:08]} 34. Nd5+ {[%clk 0:00:36]}  Bxd5 {[%clk 0:00:09]} 35. exd5 {[%clk 0:00:34]}  Ra8 {[%clk 0:00:10]} 36. Kc3 {[%clk 0:00:26]}  a3 {[%clk 0:00:09]} 37. Kb3 {[%clk 0:00:25]}  Ra5 {[%clk 0:00:08]} 38. Ka2 {[%clk 0:00:25]}  Rb8 {[%clk 0:00:07]} 39. Re4 {[%clk 0:00:21]}  Kd6 {[%clk 0:00:08]} 40. Rbe1 {[%clk 0:00:19]}  f6 {[%clk 0:00:08]} 41. Rb1 {[%clk 0:00:19]}  Kc7 {[%clk 0:00:08]} 42. Rg4 {[%clk 0:00:19]}  Ra7 {[%clk 0:00:08]} 43. Rb5 {[%clk 0:00:18]}  Kd6 {[%clk 0:00:08]} 44. Be6 {[%clk 0:00:17]}  Ke7 {[%clk 0:00:07]} 45. d4 {[%clk 0:00:16]}  exd4 {[%clk 0:00:07]} 46. Rxd4 {[%clk 0:00:17]}  Kd8 {[%clk 0:00:07]} 47. d6 {[%clk 0:00:16]}  Ra5 {[%clk 0:00:07]} 48. Rxa5 {[%clk 0:00:14]}  bxa5 {[%clk 0:00:07]} 49. Kxa3 {[%clk 0:00:14]} 1-0


[Site "https://www.chess.com"]